{"text_format":"1","workbook":"xlsx","n_sheets":5,"sheets":["Шапка + штрих код ","Пластик","Наклейки","Черновик","ДНС"],"not_rendered":{"charts":0,"images":0,"macros":1,"external_links":0,"defined_names":4,"comments":0,"pivot_tables":0},"unopened":[],"bounds":{"document_bytes":16777216,"sheet_cells":100000,"rows_first":2000,"rows_last":500,"rows_between":2000,"halvings":0,"cell_chars":16384,"cell_head_chars":4096},"cells_cut":0,"cells_raw":0,"read":"whole","date_system":"1900"}

{"sheet":"Шапка + штрих код ","index":0,"n_rows":60,"n_cols":11,"rows_kept":60,"cut":false,"hidden":true,"merged":[[38,3,44,9],[38,10,52,13],[45,3,55,9],[53,10,55,13]]}
[]
[]
[]
[]
[]
[]
[]
[]
[]
[]
[]
[]
[null,null,null,"№ пломбы ___________________"]
["Марка, номер а/м ______________________________"]
[]
["Место погрузки ДОК №_________________________"]
[]
[]
[]
[]
["ЛД выдан на склад (время) ____________________"]
[]
["ЛД принят в работу (время)___________________"]
[]
["Груз передан (время) ________________________"]
[]
[]
["Выдал кладовщик __________________________"]
["                                  (ФИО, подпись)"]
[]
["Принял водитель ___________________________"]
["                                  (ФИО, подпись)"]
[]
[]
[]
[]
[]
[]
[null,null,null,"\nВНИМАНИЮ ПЕРЕВОЗЧИКОВ!\nПо прибытию на адрес доставки, ДО НАЧАЛА РАЗГРУЗКИ необходимо уточнить у клиента наличие печати либо доверенности на прием груза.\nВ случае отсутствия у клиента/печати доверенности, разгрузку а/м и передачу груза не производить, оповестить ответственного координатора.\n\n",null,null,null,null,null,null,"В случае ВОЗВРАТА груза на склад, необходимо оповещать координатора отдела отправок по одному из телефонов: \nВремя работы координаторов :\nПН-ПТ С 9:30 ДО 18:30\nВ ОСТАЛЬНОЕ ВРЕМЯ ПРОСЬБА НЕ БЕСПОКОИТЬ!\n8-968-424-19-51-(только Whats App) Анна\n8-901-550-67-85 - только звонки Анна \n8-916-119-84-49 Валерия\n   УВАЖАЕМЫЕ ВОДИТЕЛИ! ПРОСЬБА АВТО ПОД ЗАГРУЗКУ СТАВИТЬ ТОЛЬКО В ЧИСТОМ ВИДЕ\nВ КУЗОВЕ НЕ ДОЛЖНО БЫТЬ НИКАКИХ ПОСТОРОННИХ ПРЕДМЕТОВ: \n- МУСОРА, ПОДДОНОВ,  КАНИСТР С БЕНЗИНОМ, СТРЕЙЧА "]
["Марка, номер а/м _______________________________"]
[]
["Место погрузки ДОК №__________________________"]
[]
["ЛД выдан на склад (время) _________________________",null,{"$f":"NOW()","v":44140.35281689815}]
[]
["ЛД принят в работу (время)_________________________",null,null,"        ВАЖНО! НЕДОСТАЧА, ПЕРЕСОРТ, ПОВРЕЖДЕНИЕ ТОВАРА ПРИ СДАЧЕ ГРУЗА\nВ случае если в процессе приема груза от клиента поступила информация о недостаче, пересорте, повреждение \nтовара, клиентом должен  быть составлен Акт об установленном расхождении \nпо количеству и качеству - АКТ ТОРГ-2\n !!!В случае если прием груза клиентом осуществлялся без Вашего присутствия , НЕОБХОДИМО потребовать, чтобы в Акте было зафиксировано данное обстоятельство.\n!!!В случае если прием груза клиентом осуществлялся по местам, без пересчета внутритарных вложений НЕОБХОДИМО потребовать, чтобы в Акте было зафиксировано данное обстоятельство. \n\n"]
[]
["Груз передан (время) ______________________________"]
[]
["Выдал кладовщик _________________________________"]
["                                  (ФИО, подпись)"]
[]
["Принял водитель __________________________________"]
["                                  (ФИО, подпись)",null,null,null,null,null,null,null,null,null,"№ пломбы ____________________________"]
[]
[]
[]
[]
[]
["CTRL+SHIFT+6 = ТЕКУЩЕЕ ВРЕМЯ"]

{"sheet":"Пластик","index":1,"n_rows":1,"n_cols":3,"rows_kept":1,"cut":false,"hidden":false,"merged":[]}
["LogCars","Маркировать груз","Водитель"]

{"sheet":"Наклейки","index":2,"n_rows":24,"n_cols":6,"rows_kept":24,"cut":false,"hidden":false,"merged":[]}
[{"$f":"CONCATENATE(,Пластик!A2,\"\n\", Пластик!B2,\"\n\",Пластик!C2)","v":"\n\n"},{"$f":"CONCATENATE(Пластик!A3,\"\n\", Пластик!B3,\"\n\",Пластик!C3)","v":"\n\n"},{"$f":"CONCATENATE(Пластик!A4,\"\n\", Пластик!B4,\"\n\",Пластик!C4)","v":"\n\n"}]
[{"$f":"CONCATENATE(Пластик!A5,\"\n\", Пластик!B5,\"\n\",Пластик!C5)","v":"\n\n"},{"$f":"CONCATENATE(Пластик!A6,\"\n\", Пластик!B6,\"\n\",Пластик!C6)","v":"\n\n"},{"$f":"CONCATENATE(Пластик!A7,\"\n\", Пластик!B7,\"\n\",Пластик!C7)","v":"\n\n"}]
[{"$f":"CONCATENATE(Пластик!A8,\"\n\", Пластик!B8,\"\n\",Пластик!C8)","v":"\n\n"},{"$f":"CONCATENATE(Пластик!A9,\"\n\", Пластик!B9,\"\n\",Пластик!C9)","v":"\n\n"},{"$f":"CONCATENATE(Пластик!A10,\"\n\", Пластик!B10,\"\n\",Пластик!C10)","v":"\n\n"}]
[{"$f":"CONCATENATE(Пластик!A11,\"\n\", Пластик!B11,\"\n\",Пластик!C11)","v":"\n\n"},{"$f":"CONCATENATE(Пластик!A12,\"\n\", Пластик!B12,\"\n\",Пластик!C12)","v":"\n\n"},{"$f":"CONCATENATE(Пластик!A13,\"\n\", Пластик!B13,\"\n\",Пластик!C13)","v":"\n\n"}," ",null," "]
[{"$f":"CONCATENATE(Пластик!A14,\"\n\", Пластик!B14,\"\n\",Пластик!C14)","v":"\n\n"},{"$f":"CONCATENATE(Пластик!A15,\"\n\", Пластик!B15,\"\n\",Пластик!C15)","v":"\n\n"},{"$f":"CONCATENATE(Пластик!A16,\"\n\", Пластик!B16,\"\n\",Пластик!C16)","v":"\n\n"}]
[{"$f":"CONCATENATE(Пластик!A17,\"\n\", Пластик!B17,\"\n\",Пластик!C17)","v":"\n\n"},{"$f":"CONCATENATE(Пластик!A18,\"\n\", Пластик!B18,\"\n\",Пластик!C18)","v":"\n\n"},{"$f":"CONCATENATE(Пластик!A19,\"\n\", Пластик!B19,\"\n\",Пластик!C19)","v":"\n\n"}]
[{"$f":"CONCATENATE(Пластик!A20,\"\n\", Пластик!B20,\"\n\",Пластик!C20)","v":"\n\n"},{"$f":"CONCATENATE(Пластик!A21,\"\n\", Пластик!B21,\"\n\",Пластик!C21)","v":"\n\n"},{"$f":"CONCATENATE(Пластик!A22,\"\n\", Пластик!B22,\"\n\",Пластик!C22)","v":"\n\n"}]
[{"$f":"CONCATENATE(Пластик!A23,\"\n\", Пластик!B23,\"\n\",Пластик!C23)","v":"\n\n"},{"$f":"CONCATENATE(Пластик!A24,\"\n\", Пластик!B24,\"\n\",Пластик!C24)","v":"\n\n"},{"$f":"CONCATENATE(Пластик!A25,\"\n\", Пластик!B25,\"\n\",Пластик!C25)","v":"\n\n"}]
[{"$f":"CONCATENATE(Пластик!A26,\"\n\", Пластик!B26,\"\n\",Пластик!C26)","v":"\n\n"},{"$f":"CONCATENATE(Пластик!A27,\"\n\", Пластик!B27,\"\n\",Пластик!C27)","v":"\n\n"},{"$f":"CONCATENATE(Пластик!A28,\"\n\", Пластик!B28,\"\n\",Пластик!C28)","v":"\n\n"}]
[{"$f":"CONCATENATE(Пластик!A29,\"\n\", Пластик!B29,\"\n\",Пластик!C29)","v":"\n\n"},{"$f":"CONCATENATE(Пластик!A30,\"\n\", Пластик!B30,\"\n\",Пластик!C30)","v":"\n\n"},{"$f":"CONCATENATE(Пластик!A31,\"\n\", Пластик!B31,\"\n\",Пластик!C31)","v":"\n\n"}]
[{"$f":"CONCATENATE(Пластик!A32,\"\n\", Пластик!B32,\"\n\",Пластик!C32)","v":"\n\n"},{"$f":"CONCATENATE(Пластик!A33,\"\n\", Пластик!B33,\"\n\",Пластик!C33)","v":"\n\n"},{"$f":"CONCATENATE(Пластик!A34,\"\n\", Пластик!B34,\"\n\",Пластик!C34)","v":"\n\n"}]
[{"$f":"CONCATENATE(Пластик!A35,\"\n\", Пластик!B35,\"\n\",Пластик!C35)","v":"\n\n"},{"$f":"CONCATENATE(Пластик!A36,\"\n\", Пластик!B36,\"\n\",Пластик!C36)","v":"\n\n"},{"$f":"CONCATENATE(Пластик!A37,\"\n\", Пластик!B37,\"\n\",Пластик!C37)","v":"\n\n"}]
[{"$f":"CONCATENATE(Пластик!A38,\"\n\", Пластик!B38,\"\n\",Пластик!C38)","v":"\n\n"},{"$f":"CONCATENATE(Пластик!A39,\"\n\", Пластик!B39,\"\n\",Пластик!C39)","v":"\n\n"},{"$f":"CONCATENATE(Пластик!A40,\"\n\", Пластик!B40,\"\n\",Пластик!C40)","v":"\n\n"}]
[{"$f":"CONCATENATE(Пластик!A41,\"\n\", Пластик!B41,\"\n\",Пластик!C41)","v":"\n\n"},{"$f":"CONCATENATE(Пластик!A42,\"\n\", Пластик!B42,\"\n\",Пластик!C42)","v":"\n\n"},{"$f":"CONCATENATE(Пластик!A43,\"\n\", Пластик!B43,\"\n\",Пластик!C43)","v":"\n\n"}]
[{"$f":"CONCATENATE(Пластик!A44,\"\n\", Пластик!B44,\"\n\",Пластик!C44)","v":"\n\n"},{"$f":"CONCATENATE(Пластик!A45,\"\n\", Пластик!B45,\"\n\",Пластик!C45)","v":"\n\n"},{"$f":"CONCATENATE(Пластик!A46,\"\n\", Пластик!B46,\"\n\",Пластик!C46)","v":"\n\n"}]
[{"$f":"CONCATENATE(Пластик!A47,\"\n\", Пластик!B47,\"\n\",Пластик!C47)","v":"\n\n"},{"$f":"CONCATENATE(Пластик!A48,\"\n\", Пластик!B48,\"\n\",Пластик!C48)","v":"\n\n"},{"$f":"CONCATENATE(Пластик!A49,\"\n\", Пластик!B49,\"\n\",Пластик!C49)","v":"\n\n"}]
[{"$f":"CONCATENATE(Пластик!A50,\"\n\", Пластик!B50,\"\n\",Пластик!C50)","v":"\n\n"},{"$f":"CONCATENATE(Пластик!A51,\"\n\", Пластик!B51,\"\n\",Пластик!C51)","v":"\n\n"},{"$f":"CONCATENATE(Пластик!A52,\"\n\", Пластик!B52,\"\n\",Пластик!C52)","v":"\n\n"}]
[{"$f":"CONCATENATE(Пластик!A53,\"\n\", Пластик!B53,\"\n\",Пластик!C53)","v":"\n\n"},{"$f":"CONCATENATE(Пластик!A54,\"\n\", Пластик!B54,\"\n\",Пластик!C54)","v":"\n\n"},{"$f":"CONCATENATE(Пластик!A55,\"\n\", Пластик!B55,\"\n\",Пластик!C55)","v":"\n\n"}]
[{"$f":"CONCATENATE(Пластик!A56,\"\n\", Пластик!B56,\"\n\",Пластик!C56)","v":"\n\n"},{"$f":"CONCATENATE(Пластик!A57,\"\n\", Пластик!B57,\"\n\",Пластик!C57)","v":"\n\n"},{"$f":"CONCATENATE(Пластик!A58,\"\n\", Пластик!B58,\"\n\",Пластик!C58)","v":"\n\n"}]
[{"$f":"CONCATENATE(Пластик!A59,\"\n\", Пластик!B59,\"\n\",Пластик!C59)","v":"\n\n"},{"$f":"CONCATENATE(Пластик!A60,\"\n\", Пластик!B60,\"\n\",Пластик!C60)","v":"\n\n"},{"$f":"CONCATENATE(Пластик!A61,\"\n\", Пластик!B61,\"\n\",Пластик!C61)","v":"\n\n"}]
[{"$f":"CONCATENATE(Пластик!A62,\"\n\", Пластик!B62,\"\n\",Пластик!C62)","v":"\n\n"},{"$f":"CONCATENATE(Пластик!A63,\"\n\", Пластик!B63,\"\n\",Пластик!C63)","v":"\n\n"},{"$f":"CONCATENATE(Пластик!A64,\"\n\", Пластик!B64,\"\n\",Пластик!C64)","v":"\n\n"}]
[{"$f":"CONCATENATE(Пластик!A65,\"\n\", Пластик!B65,\"\n\",Пластик!C65)","v":"\n\n"},{"$f":"CONCATENATE(Пластик!A66,\"\n\", Пластик!B66,\"\n\",Пластик!C66)","v":"\n\n"},{"$f":"CONCATENATE(Пластик!A67,\"\n\", Пластик!B67,\"\n\",Пластик!C67)","v":"\n\n"}]
[{"$f":"CONCATENATE(Пластик!A68,\"\n\", Пластик!B68,\"\n\",Пластик!C68)","v":"\n\n"},{"$f":"CONCATENATE(Пластик!A69,\"\n\", Пластик!B69,\"\n\",Пластик!C69)","v":"\n\n"},{"$f":"CONCATENATE(Пластик!A70,\"\n\", Пластик!B70,\"\n\",Пластик!C70)","v":"\n\n"}]
[{"$f":"CONCATENATE(Пластик!A71,\"\n\", Пластик!B71,\"\n\",Пластик!C71)","v":"\n\n"},{"$f":"CONCATENATE(Пластик!A72,\"\n\", Пластик!B72,\"\n\",Пластик!C72)","v":"\n\n"},{"$f":"CONCATENATE(Пластик!A73,\"\n\", Пластик!B73,\"\n\",Пластик!C73)","v":"\n\n"}]

{"sheet":"Черновик","index":3,"n_rows":0,"n_cols":0,"rows_kept":0,"cut":false,"hidden":false,"merged":[]}

{"sheet":"ДНС","index":4,"n_rows":75,"n_cols":19,"rows_kept":75,"cut":false,"hidden":false,"merged":[[2,0,2,2],[3,0,3,14],[5,0,5,15],[5,16,5,18],[59,3,65,9],[59,10,73,13],[66,3,76,9],[74,10,76,13]]}
[null,null,null," ",null,null,null,null,null,null,null,null,null,null,null,null,{"$f":"COUNTIF(D9:D200,\"0\")","v":0},"Кол-во не собранных заказов"]
[null,null,null,null,null,null,null,null,null,null,null,null,null,null,null,null,{"$f":"COUNTIF(K9:K200,\"ЕСТЬ\")-COUNTIF(D9:D200,\"<1\")","v":49},"Кол-во готовых заявок"]
[" Утверждаю Цапин С.Н.",null,null,null,null,null,null,null,null,null,null,null,null,null,null,null,{"$f":"COUNTIF(K9:K200,\"г*\")","v":0},"Кол-во заказов на погрузке"]
["Лист доставки на 05.11.2020г. ",null,null,null,null,null,null,null,null,null,null,null,null,null,null,null,{"$f":"COUNTIF(K9:L200,\"в пути\")","v":0},"Кол-во заказов покинули склад"]
[]
[]
["LC","Маркировать груз","Адрес","Кол-во\nмест","Информация ","вес","Объем","Склад","Маршрут","Водитель","Состояние","комментарии","Специалист по контролю","Плановое время","Время прибытия","Время убытия","Примечание","Прибытие к клиенту ","Убытие от клиента"]
[null,null,null,null,null,null,null,null,null," ",null,null,null,null,null,":"]
[945522,"Обухово -Марвел  -  Владимир авто Яндекс 2045 -ID00090256","Московская обл,Ногинский р-н (50) , Обухово пгт,Кудиновское ш,д.4,",1,null,0.19,1.73E-3,12202,"050, 14фин, 220, Бирюков","Бирюков О.Г.","есть",null,"Четвернина В.А.","08:26:58","04:00:00"]
[945533,"Обухово -Марвел  -  Волгоград авто Яндекс 2045 - ID00090188","Московская обл,Ногинский р-н (50) , Обухово пгт,Кудиновское ш,д.4,",1,null,0.35,3.2299999999999998E-3,12202,"050, 14фин, 220, Бирюков","Бирюков О.Г.","есть",null,"Четвернина В.А.","04:00:00","04:00:00"]
[945526,"Обухово -Марвел  -  Екатеринбург авто Яндекс 2045 - ID00090264","Московская обл,Ногинский р-н (50) , Обухово пгт,Кудиновское ш,д.4,",1,null,0.7,4.1999999999999997E-3,12202,"050, 14фин, 220, Бирюков","Бирюков О.Г.","есть",null,"Четвернина В.А.","04:00:00","04:00:00"]
[945536,"Обухово -Марвел  -  Иркутск  жд Яндекс 2045 - ID00090351","Московская обл,Ногинский р-н (50) , Обухово пгт,Кудиновское ш,д.4,",1,null,1.73,7.1799999999999998E-3,12202,"050, 14фин, 220, Бирюков","Бирюков О.Г.","есть",null,"Четвернина В.А.","04:00:00","04:00:00"]
[945529,"Обухово -Марвел  -  Казань авто Яндекс 2045 - ID00090248","Московская обл,Ногинский р-н (50) , Обухово пгт,Кудиновское ш,д.4,",1,null,2.33,2.3199999999999998E-2,12202,"050, 14фин, 220, Бирюков","Бирюков О.Г.","есть",null,"Четвернина В.А.","04:00:00","04:00:00"]
[945532,"Обухово -Марвел  -  Москва Софьино авто Яндекс 2045 - ID00090288","Московская обл,Ногинский р-н (50) , Обухово пгт,Кудиновское ш,д.4,",1,null,5.64,4.0289999999999999E-2,12202,"050, 14фин, 220, Бирюков","Бирюков О.Г.","есть",null,"Четвернина В.А.","04:00:00","04:00:00"]
[945525,"Обухово -Марвел  -  Новосибирск жд Яндекс 2045 - ID00090344","Московская обл,Ногинский р-н (50) , Обухово пгт,Кудиновское ш,д.4,",1,null,1.52,1.67E-2,12202,"050, 14фин, 220, Бирюков","Бирюков О.Г.","есть",null,"Четвернина В.А.","04:00:00","04:00:00"]
[945530,"Обухово -Марвел  -  Симферополь авто Яндекс 2045 - ID00090315","Московская обл,Ногинский р-н (50) , Обухово пгт,Кудиновское ш,д.4,",1,null,0.8,8.5100000000000002E-3,12202,"050, 14фин, 220, Бирюков","Бирюков О.Г.","есть",null,"Четвернина В.А.","04:00:00","04:00:00"]
[945535,"Обухово -Марвел  - Благовещенск жд Яндекс 2045 -ID00090376","Московская обл,Ногинский р-н (50) , Обухово пгт,Кудиновское ш,д.4,",1,null,0.59,8.5100000000000002E-3,12202,"050, 14фин, 220, Бирюков","Бирюков О.Г.","есть",null,"Четвернина В.А.","04:00:00","04:00:00"]
[945524,"Обухово -Марвел  - Владивосток жд Яндекс 2045 - ID00090372","Московская обл,Ногинский р-н (50) , Обухово пгт,Кудиновское ш,д.4,",1,null,0.42,2.0500000000000002E-3,12202,"050, 14фин, 220, Бирюков","Бирюков О.Г.","есть",null,"Четвернина В.А.","04:00:00","04:00:00"]
[945534,"Обухово -Марвел  - Воронеж авто Яндекс 2045 - ID00090136","Московская обл,Ногинский р-н (50) , Обухово пгт,Кудиновское ш,д.4,",1,null,1.02,5.94E-3,12202,"050, 14фин, 220, Бирюков","Бирюков О.Г.","есть",null,"Четвернина В.А.","04:00:00","04:00:00"]
[945537,"Обухово -Марвел  - Красноярск жд Яндекс 2045 - ID00090357","Московская обл,Ногинский р-н (50) , Обухово пгт,Кудиновское ш,д.4,",1,null,0.7,2.7699999999999999E-3,12202,"050, 14фин, 220, Бирюков","Бирюков О.Г.","есть",null,"Четвернина В.А.","04:00:00","04:00:00"]
[945523,"Обухово -Марвел  - Нижний Новгород авто Яндекс 2045 - ID00090159","Московская обл,Ногинский р-н (50) , Обухово пгт,Кудиновское ш,д.4,",1,null,0.32,2.5999999999999999E-3,12202,"050, 14фин, 220, Бирюков","Бирюков О.Г.","есть",null,"Четвернина В.А.","04:00:00","04:00:00"]
[945527,"Обухово -Марвел  - Самара авто Яндекс 2045 - ID00090323","Московская обл,Ногинский р-н (50) , Обухово пгт,Кудиновское ш,д.4,",1,null,1.45,1.235E-2,12202,"050, 14фин, 220, Бирюков","Бирюков О.Г.","есть",null,"Четвернина В.А.","04:00:00","04:00:00"]
[945531,"Обухово -Марвел  - Санкт-Петербург авто Яндекс 2045 - ID00090182","Московская обл,Ногинский р-н (50) , Обухово пгт,Кудиновское ш,д.4,",1,null,2.2000000000000002,1.2E-2,12202,"050, 14фин, 220, Бирюков","Бирюков О.Г.","есть",null,"Четвернина В.А.","04:00:00","04:00:00"]
[945521,"Обухово -Марвел  - Тула авто Яндекс 2045 - ID00090300","Московская обл,Ногинский р-н (50) , Обухово пгт,Кудиновское ш,д.4,",1,null,0.3,1.73E-3,12202,"050, 14фин, 220, Бирюков","Бирюков О.Г.","есть",null,"Четвернина В.А.","04:00:00","04:00:00"]
[945528,"Обухово -Марвел  - Уфа авто Яндекс 2045 - ID00090146","Московская обл,Ногинский р-н (50) , Обухово пгт,Кудиновское ш,д.4,",1,null,1.65,1.677E-2,12202,"050, 14фин, 220, Бирюков","Бирюков О.Г.","есть",null,"Четвернина В.А.","04:00:00","04:00:00"]
[945584,"Обухово -Марвел - ДНС Ритейл -Благовещенск авиа Vivo 2045 - ID00090105","РФ,Московская обл,Ногинский р-н (50) , Обухово пгт,Кудиновское ш,д.4,",2,null,6.12,2.0420000000000001E-2,12202,"050, 14фин, 220, Бирюков","Бирюков О.Г.","есть",null,"Четвернина В.А.","04:00:00","04:00:00"]
[945583,"Обухово -Марвел - ДНС Ритейл -Владивосток авиа Vivo 2045 - ID00090090","РФ,Московская обл,Ногинский р-н (50) , Обухово пгт,Кудиновское ш,д.4,",4,null,18.66,4.3679999999999997E-2,12202,"050, 14фин, 220, Бирюков","Бирюков О.Г.","есть",null,"Четвернина В.А.","04:00:00","04:00:00"]
[945574,"Обухово -Марвел - ДНС Ритейл -Владимир авто Vivo 2045 - ID00090256","РФ,Московская обл,Ногинский р-н (50) , Обухово пгт,Кудиновское ш,д.4,",7,null,28.17,5.7669999999999999E-2,12202,"050, 14фин, 220, Бирюков","Бирюков О.Г.","есть",null,"Четвернина В.А.","04:00:00","04:00:00"]
[945578,"Обухово -Марвел - ДНС Ритейл -Волгоград авто Vivo 2045 - ID00090188","РФ,Московская обл,Ногинский р-н (50) , Обухово пгт,Кудиновское ш,д.4,",4,null,14,3.6510000000000001E-2,12202,"050, 14фин, 220, Бирюков","Бирюков О.Г.","есть",null,"Четвернина В.А.","04:00:00","04:00:00"]
[945579,"Обухово -Марвел - ДНС Ритейл -Воронеж авто Vivo 2045 - ID00090136","РФ,Московская обл,Ногинский р-н (50) , Обухово пгт,Кудиновское ш,д.4,",5,null,21.21,8.5250000000000006E-2,12202,"050, 14фин, 220, Бирюков","Бирюков О.Г.","есть",null,"Четвернина В.А.","04:00:00","04:00:00"]
[945556,"Обухово -Марвел - ДНС Ритейл -Екатеринбург авиа Vivo 2045 - ID00090075","РФ,Московская обл,Ногинский р-н (50) , Обухово пгт,Кудиновское ш,д.4,",6,null,26.33,6.2700000000000006E-2,12202,"050, 14фин, 220, Бирюков","Бирюков О.Г.","есть",null,"Четвернина В.А.","04:00:00","04:00:00"]
[945582,"Обухово -Марвел - ДНС Ритейл -Иркутск авиа Vivo 2045 - ID00090049","РФ,Московская обл,Ногинский р-н (50) , Обухово пгт,Кудиновское ш,д.4,",4,null,15.47,3.6510000000000001E-2,12202,"050, 14фин, 220, Бирюков","Бирюков О.Г.","есть",null,"Четвернина В.А.","04:00:00","04:00:00"]
[945570,"Обухово -Марвел - ДНС Ритейл -Казань авто Vivo 2045 - ID00090248","РФ,Московская обл,Ногинский р-н (50) , Обухово пгт,Кудиновское ш,д.4,",7,null,28.98,7.0970000000000005E-2,12202,"050, 14фин, 220, Бирюков","Бирюков О.Г.","есть",null,"Четвернина В.А.","04:00:00","04:00:00"]
[945576,"Обухово -Марвел - ДНС Ритейл -Калининград авиа Vivo 2045 - ID00090109","РФ,Московская обл,Ногинский р-н (50) , Обухово пгт,Кудиновское ш,д.4,",2,null,3.45,2.2020000000000001E-2,12202,"050, 14фин, 220, Бирюков","Бирюков О.Г.","есть",null,"Четвернина В.А.","04:00:00","04:00:00"]
[945567,"Обухово -Марвел - ДНС Ритейл -Краснодар авто Vivo 2045 - ID00090273","РФ,Московская обл,Ногинский р-н (50) , Обухово пгт,Кудиновское ш,д.4,",4,null,17.559999999999999,4.2909999999999997E-2,12202,"050, 14фин, 220, Бирюков","Бирюков О.Г.","есть",null,"Четвернина В.А.","04:00:00","04:00:00"]
[945558,"Обухово -Марвел - ДНС Ритейл -Красноярск авиа Vivo 2045 - ID00090060","РФ,Московская обл,Ногинский р-н (50) , Обухово пгт,Кудиновское ш,д.4,",2,null,3.73,3.2379999999999999E-2,12202,"050, 14фин, 220, Бирюков","Бирюков О.Г.","есть",null,"Четвернина В.А.","04:00:00","04:00:00"]
[945559,"Обухово -Марвел - ДНС Ритейл -Ленск авиа Vivo 2045 - ID00090079","РФ,Московская обл,Ногинский р-н (50) , Обухово пгт,Кудиновское ш,д.4,",1,null,1.05,1.2E-2,12202,"050, 14фин, 220, Бирюков","Бирюков О.Г.","есть",null,"Четвернина В.А.","04:00:00","04:00:00"]
[945565,"Обухово -Марвел - ДНС Ритейл -Москва Восток авто Vivo 2045 - ID00090235","РФ,Московская обл,Ногинский р-н (50) , Обухово пгт,Кудиновское ш,д.4,",4,null,11.89,3.9660000000000001E-2,12202,"050, 14фин, 220, Бирюков","Бирюков О.Г.","есть",null,"Четвернина В.А.","04:00:00","04:00:00"]
[945577,"Обухово -Марвел - ДНС Ритейл -Москва Софьино авто Vivo 2045 - ID00090288","РФ,Московская обл,Ногинский р-н (50) , Обухово пгт,Кудиновское ш,д.4,",6,null,22.58,5.6860000000000001E-2,12202,"050, 14фин, 220, Бирюков","Бирюков О.Г.","есть",null,"Четвернина В.А.","04:00:00","04:00:00"]
[945581,"Обухово -Марвел - ДНС Ритейл -Нижний Новгород авто Vivo 2045 - ID00090159","РФ,Московская обл,Ногинский р-н (50) , Обухово пгт,Кудиновское ш,д.4,",3,null,13.62,3.6679999999999997E-2,12202,"050, 14фин, 220, Бирюков","Бирюков О.Г.","есть",null,"Четвернина В.А.","04:00:00","04:00:00"]
[945555,"Обухово -Марвел - ДНС Ритейл -Новосибирск авиа Vivo 2045 - ID00090044","РФ,Московская обл,Ногинский р-н (50) , Обухово пгт,Кудиновское ш,д.4,",16,null,67.09,0.13980999999999999,12202,"050, 14фин, 220, Бирюков","Бирюков О.Г.","есть",null,"Четвернина В.А.","04:00:00","04:00:00"]
[945560,"Обухово -Марвел - ДНС Ритейл -Норильск авиа Vivo 2045 - ID00090083","РФ,Московская обл,Ногинский р-н (50) , Обухово пгт,Кудиновское ш,д.4,",1,null,2.71,1.478E-2,12202,"050, 14фин, 220, Бирюков","Бирюков О.Г.","есть",null,"Четвернина В.А.","04:00:00","04:00:00"]
[945557,"Обухово -Марвел - ДНС Ритейл -Пермь авиа Vivo 2045-ID00090056","РФ,Московская обл,Ногинский р-н (50) , Обухово пгт,Кудиновское ш,д.4,",5,null,11,3.4860000000000002E-2,12202,"050, 14фин, 220, Бирюков","Бирюков О.Г.","есть",null,"Четвернина В.А.","04:00:00","04:00:00"]
[945571,"Обухово -Марвел - ДНС Ритейл -П-Камчатский авиа Vivo 2045 - ID00090116","РФ,Московская обл,Ногинский р-н (50) , Обухово пгт,Кудиновское ш,д.4,",1,null,1.47,1.619E-2,12202,"050, 14фин, 220, Бирюков","Бирюков О.Г.","есть",null,"Четвернина В.А.","04:00:00","04:00:00"]
[945572,"Обухово -Марвел - ДНС Ритейл -Ростов-на-Дону авто Vivo 2045 - ID00090195","РФ,Московская обл,Ногинский р-н (50) , Обухово пгт,Кудиновское ш,д.4,",7,null,28.71,7.8850000000000003E-2,12202,"050, 14фин, 220, Бирюков","Бирюков О.Г.","есть",null,"Четвернина В.А.","04:00:00","04:00:00"]
[945569,"Обухово -Марвел - ДНС Ритейл -Самара авто Vivo 2045 - ID00090323","РФ,Московская обл,Ногинский р-н (50) , Обухово пгт,Кудиновское ш,д.4,",5,null,20,5.2089999999999997E-2,12202,"050, 14фин, 220, Бирюков","Бирюков О.Г.","есть",null,"Четвернина В.А.","04:00:00","04:00:00"]
[945573,"Обухово -Марвел - ДНС Ритейл -Санкт-Петербург авто Vivo 2045 - ID00090182","РФ,Московская обл,Ногинский р-н (50) , Обухово пгт,Кудиновское ш,д.4,",8,null,34.619999999999997,8.8289999999999993E-2,12202,"050, 14фин, 220, Бирюков","Бирюков О.Г.","есть",null,"Четвернина В.А.","04:00:00","04:00:00"]
[945575,"Обухово -Марвел - ДНС Ритейл -Симферополь авиа Vivo 2045 - ID00090093","РФ,Московская обл,Ногинский р-н (50) , Обухово пгт,Кудиновское ш,д.4,",2,null,6.28,2.7320000000000001E-2,12202,"050, 14фин, 220, Бирюков","Бирюков О.Г.","есть",null,"Четвернина В.А.","04:00:00","04:00:00"]
[945564,"Обухово -Марвел - ДНС Ритейл -Товарный терминал авто Vivo 2045 - ID00090222","РФ,Московская обл,Ногинский р-н (50) , Обухово пгт,Кудиновское ш,д.4,",1,null,2.12,1.686E-2,12202,"050, 14фин, 220, Бирюков","Бирюков О.Г.","есть",null,"Четвернина В.А.","04:00:00","04:00:00"]
[945580,"Обухово -Марвел - ДНС Ритейл -Тула авто Vivo 2045 - ID00090300","РФ,Московская обл,Ногинский р-н (50) , Обухово пгт,Кудиновское ш,д.4,",5,null,24,4.9149999999999999E-2,12202,"050, 14фин, 220, Бирюков","Бирюков О.Г.","есть",null,"Четвернина В.А.","04:00:00","04:00:00"]
[945566,"Обухово -Марвел - ДНС Ритейл -Уфа авто Vivo 2045 - ID00090146","РФ,Московская обл,Ногинский р-н (50) , Обухово пгт,Кудиновское ш,д.4,",4,null,16.72,4.2700000000000002E-2,12202,"050, 14фин, 220, Бирюков","Бирюков О.Г.","есть",null,"Четвернина В.А.","04:00:00","04:00:00"]
[945561,"Обухово -Марвел - ДНС Ритейл -Хабаровск авиа Vivo 2045 - ID00090113","РФ,Московская обл,Ногинский р-н (50) , Обухово пгт,Кудиновское ш,д.4,",3,null,10.58,3.5900000000000001E-2,12202,"050, 14фин, 220, Бирюков","Бирюков О.Г.","есть",null,"Четвернина В.А.","04:00:00","04:00:00"]
[945568,"Обухово -Марвел - ДНС Ритейл -Челябинск авиа Vivo 2045 - ID00090064","РФ,Московская обл,Ногинский р-н (50) , Обухово пгт,Кудиновское ш,д.4,",5,null,19.11,4.0840000000000001E-2,12202,"050, 14фин, 220, Бирюков","Бирюков О.Г.","есть",null,"Четвернина В.А.","04:00:00","04:00:00"]
[945562,"Обухово -Марвел - ДНС Ритейл -Чита авиа  Vivo2045 - ID00090035","РФ,Московская обл,Ногинский р-н (50) , Обухово пгт,Кудиновское ш,д.4,",3,null,11.89,3.3020000000000001E-2,12202,"050, 14фин, 220, Бирюков","Бирюков О.Г.","есть",null,"Четвернина В.А.","04:00:00","04:00:00"]
[945563,"Обухово -Марвел - ДНС Ритейл -Якутск авиа Vivo 2045 - ID00090099","РФ,Московская обл,Ногинский р-н (50) , Обухово пгт,Кудиновское ш,д.4,",1,null,5.36,1.9130000000000001E-2,12202,"050, 14фин, 220, Бирюков","Бирюков О.Г.","есть",null,"Четвернина В.А.","04:00:00","04:00:00"]
[945539,"Обухово -Марвел - Москва Восток авто Яндекс 2045 - ID00090235","Московская обл,Ногинский р-н (50) , Обухово пгт,Кудиновское ш,д.4,",1,null,0.41,1.73E-3,12202,"050, 14фин, 220, Бирюков","Бирюков О.Г.","есть",null,"Четвернина В.А.","04:00:00","04:00:00"]
[945538,"Обухово -Марвел - Хабаровск жд Яндекс 2045 - ID00090380","Московская обл,Ногинский р-н (50) , Обухово пгт,Кудиновское ш,д.4,",1,null,1.79,3.5999999999999997E-2,12202,"050, 14фин, 220, Бирюков","Бирюков О.Г.","есть",null,"Четвернина В.А.","04:00:00","04:00:00"]
[null,null,"ИТОГО","147\nмест\n49 \nLogCars"]
[]
[null,null,null,"\nВНИМАНИЮ ПЕРЕВОЗЧИКОВ!\nПо прибытию на адрес доставки, ДО НАЧАЛА РАЗГРУЗКИ необходимо уточнить у клиента наличие печати либо доверенности на прием груза.\nВ случае отсутствия у клиента/печати доверенности, разгрузку а/м и передачу груза не производить, оповестить ответственного координатора.\n\n",null,null,null,null,null,null,"В случае ВОЗВРАТА груза на склад, необходимо оповещать координатора отдела отправок по одному из телефонов: \nВремя работы координаторов :\nПН-ПТ С 9:30 ДО 18:30\nВ ОСТАЛЬНОЕ ВРЕМЯ ПРОСЬБА НЕ БЕСПОКОИТЬ!\n8-968-424-19-51-(только Whats App) Анна\n8-901-550-67-85 - только звонки Анна \n8-916-119-84-49 Валерия\n   УВАЖАЕМЫЕ ВОДИТЕЛИ! ПРОСЬБА АВТО ПОД ЗАГРУЗКУ СТАВИТЬ ТОЛЬКО В ЧИСТОМ ВИДЕ\nВ КУЗОВЕ НЕ ДОЛЖНО БЫТЬ НИКАКИХ ПОСТОРОННИХ ПРЕДМЕТОВ: \n- МУСОРА, ПОДДОНОВ,  КАНИСТР С БЕНЗИНОМ, СТРЕЙЧА "]
["Марка, номер а/м _______________________________"]
[]
["Место погрузки ДОК №__________________________"]
[]
["ЛД выдан на склад (время) _________________________",null,{"$f":"NOW()","v":44140.35281689815}]
[]
["ЛД принят в работу (время)_________________________",null,null,"        ВАЖНО! НЕДОСТАЧА, ПЕРЕСОРТ, ПОВРЕЖДЕНИЕ ТОВАРА ПРИ СДАЧЕ ГРУЗА\nВ случае если в процессе приема груза от клиента поступила информация о недостаче, пересорте, повреждение \nтовара, клиентом должен  быть составлен Акт об установленном расхождении \nпо количеству и качеству - АКТ ТОРГ-2\n !!!В случае если прием груза клиентом осуществлялся без Вашего присутствия , НЕОБХОДИМО потребовать, чтобы в Акте было зафиксировано данное обстоятельство.\n!!!В случае если прием груза клиентом осуществлялся по местам, без пересчета внутритарных вложений НЕОБХОДИМО потребовать, чтобы в Акте было зафиксировано данное обстоятельство. \n\n"]
[]
["Груз передан (время) ______________________________"]
[]
["Выдал кладовщик _________________________________"]
["                                  (ФИО, подпись)"]
[]
["Принял водитель __________________________________"]
["                                  (ФИО, подпись)",null,null,null,null,null,null,null,null,null,"№ пломбы ____________________________"]